Cogmind - Beta 11.1 @@@ ROGUE MODE // 2022.05.26 @ 09:45:02 Player: ChromeKnight Result: Destroyed by as-42640 with Assembled Rifle Performance ------------- Evolutions (0) 0 Regions Visited (4) 800 Robots Destroyed (38) 190 Value Destroyed (466) 466 Prototype IDs (0) 0 Alien Tech Used (0) 0 Bonus (0) 0 TOTAL SCORE: 1456 Bonus ------- None Cogmind --------- Core Integrity 0/250 Matter 281/300 Energy 125/125 System Corruption 0% Temperature Cool (0) Movement Rolling (140) Ox4 Location -9/Mines Parts ------- > --- POWER (1) -------- Light Ion Engine > --- PROPULSION (2) --- Wheel Wheel > --- UTILITY (2) ------ Huge Storage Unit Seismic Detector > --- WEAPON (2) ------- Light Assault Rifle Light Assault Rifle > --- INVENTORY (25) --- Light Ion Engine Fission Core Light Fission Core Light Fission Core Aluminum Leg Aluminum Leg Aluminum Leg Wheel Wheel Wheel Wheel Wheel Compact Matter Pod (150) Compact Matter Pod (150) Weight Redist. System Weapon Shielding Light Assault Rifle Light Assault Rifle Light Assault Rifle Light Assault Rifle Light Assault Rifle Light Assault Rifle Light Assault Rifle EMP Trap Peak State ------------ > --- POWER ------------ Light Ion Engine > --- PROPULSION ------- Wheel Compact Wheel > --- UTILITY ---------- Huge Storage Unit Seismic Detector > --- WEAPON ----------- Light Assault Rifle Light Assault Rifle > --- INVENTORY -------- Light Ion Engine Fission Core Light Fission Core Light Fission Core Aluminum Leg Aluminum Leg Aluminum Leg Wheel Wheel Wheel Wheel Wheel Wheel Compact Matter Pod Compact Matter Pod Weight Redist. System Weapon Shielding Light Assault Rifle Light Assault Rifle Light Assault Rifle Light Assault Rifle Light Assault Rifle Light Assault Rifle Light Assault Rifle EMP Trap [Rating: 11] Favorites ----------- Power Light Ion Engine Engine Light Ion Engine Propulsion Light Treads Treads Light Treads Leg Aluminum Leg Wheel Wheel Utility Seismic Detector Device Seismic Detector Storage Huge Storage Unit Weapon Light Assault Rifle Energy Gun Small Laser Ballistic Gun Light Assault Rifle Ballistic Cannon Light Cannon Build | -11 -10 -10 -10 -9 ------- Run | Scr Mat Min Exi Min Slots Evolved . | . . . . . Power . | . . . . . Propulsion . | . . . . . Utility . | . . . . . Weapon . | . . . . . Parts Attached 30 | 9 6 13 1 1 Power 4 | 1 1 2 . . Engine 4 | 1 1 2 . . Core . | . . . . . Reactor . | . . . . . Propulsion 13 | 4 . 8 . 1 Treads 4 | 2 . 2 . . Leg 2 | 2 . . . . Wheel 7 | . . 6 . 1 Hover . | . . . . . Flight . | . . . . . Utility 4 | 2 1 1 . . Device 1 | 1 . . . . Storage 3 | 1 1 1 . . Processor . | . . . . . Hackware . | . . . . . Protection . | . . . . . Artifact . | . . . . . Weapon 9 | 2 4 2 1 . Energy Gun 1 | . 1 . . . Energy Cannon . | . . . . . Ballistic Gun 7 | 2 2 2 1 . Ballistic Cannon 1 | . 1 . . . Launcher . | . . . . . Special Weapon . | . . . . . Impact Weapon . | . . . . . Slashing Weapon . | . . . . . Piercing Weapon . | . . . . . Special Melee Weapon . | . . . . . Unidentified Prototypes . | . . . . . Parts Lost 4 | . . 3 . 1 Power . | . . . . . Propulsion 3 | . . 2 . 1 Utility . | . . . . . Weapon 1 | . . 1 . . Highest Loss Streak 1 | . . 1 . 1 To Critical Strikes . | . . . . . Average Slot Usage (%) 96 | . 99 91 100 100 Engine 14 | . 14 14 14 14 Treads 12 | . 28 4 . . Wheel 13 | . . 18 28 28 Device 14 | . 14 14 14 14 Storage 14 | . 14 14 14 14 Energy Gun 1 | . 5 . . . Ballistic Gun 20 | . 19 17 28 28 Ballistic Cannon 4 | . 3 6 . . Naked Turns . | . . . . . Heaviest Build 88 | 14 18 88 86 86 Greatest Support 40 | 40 40 40 26 26 Greatest Overweight (x) 8 | . . 8 3 4 Average Overweight (x) 2 | . . 3 3 3 Largest Inventory Capacity 25 | 8 10 25 25 25 Average Capacity 18 | 6 9 24 25 25 Most Carried 25 | 2 10 25 25 25 Average Carried 16 | 1 8 19 24 24 Final Capacity 25 | 8 10 25 25 25 Final Carried 25 | 2 10 25 25 24 Class Distribution -------------------- 55% | Mutant 44% | Scavenger-Mutant Dominant Class ---------------- Mutant | -10/Materials Scavenger-Mutant | -10/Mines Scavenger-Mutant | -10/Exiles Scavenger-Mutant | -9/Mines Resources | -11 -10 -10 -10 -9 ----------- Run | Scr Mat Min Exi Min Matter Collected 1013 | 258 359 396 . . Remotely . | . . . . . Salvage Created 926 | 22 471 419 . 14 Parts 90 | 3 38 48 . 1 Haulers Intercepted 1 | . 1 . . . Recyclers Shooed 1 | . . 1 . . Parts Field Recycled . | . . . . . Retrieved Matter . | . . . . . Parts Self-Destructed . | . . . . . Prevented . | . . . . . Kills | -11 -10 -10 -10 -9 ------- Run | Scr Mat Min Exi Min Combat Hostiles Destroyed 23 | . 12 10 . 1 Guns 19 | . 12 6 . 1 Cannons 3 | . . 3 . . AOE 1 | . . 1 . . Classes Destroyed 7 | 1 5 1 . . Worker 6 | . . 6 . . Tunneler 3 | 1 . 2 . . Hauler 1 | . 1 . . . Recycler 4 | . 1 3 . . Watcher 1 | . 1 . . . Swarmer 17 | . 6 10 . 1 Grunt 6 | . 6 . . . Best Kill Streak 5 | 1 5 4 . 1 Combat Bots Only 5 | . 5 3 . 1 Max Kills in Single Turn 1 | 1 1 1 . 1 Gunslinging . | . . . . . Exploded 1 | . . 1 . . Melee . | . . . . . Uniques/NPCs Destroyed . | . . . . . Combat | -11 -10 -10 -10 -9 -------- Run | Scr Mat Min Exi Min Damage Taken 1104 | . 431 530 . 143 Core 250 | . 82 116 . 52 Absorbed by Shields . | . . . . . Core Remaining (%) 100 | 100 . . . . Volleys Fired 121 | 3 58 58 . 2 Largest 2 | 2 2 2 . 2 Hottest 60 | 40 60 55 . 40 Shots Fired 225 | 6 104 111 . 4 Gun 174 | 6 101 63 . 4 Cannon 51 | . 3 48 . . Launcher . | . . . . . Special . | . . . . . Kinetic 224 | 6 103 111 . 4 Thermal 1 | . 1 . . . Explosive . | . . . . . Electromagnetic . | . . . . . Robot Hit Streak 17 | 4 17 9 . 1 Robot Miss Streak 7 | 1 4 7 . 1 Penetration Max . | . . . . . Secondary Targets . | . . . . . Shots Hit Robots 135 | 4 67 62 . 2 Core Hits 63 | 1 30 31 . 1 Critical Kills 2 | . 2 . . . Critical Parts Destroyed 1 | . . 1 . . Critical Strikes 3 | . 2 1 . . Destroy 3 | . 2 1 . . Melee Attacks . | . . . . . Impact . | . . . . . Slashing . | . . . . . Piercing . | . . . . . Sneak Attacks . | . . . . . Combat Hostiles . | . . . . . Follow-up Attacks . | . . . . . Damage Inflicted 1450 | 51 565 816 . 18 Guns 958 | 51 565 324 . 18 Cannons 444 | . . 444 . . Explosions . | . . . . . Melee . | . . . . . Ramming 48 | . . 48 . . Kinetic 1402 | 51 565 768 . 18 Thermal . | . . . . . Explosive . | . . . . . Electromagnetic . | . . . . . Impact . | . . . . . Slashing . | . . . . . Piercing . | . . . . . Highest Corruption . | . . . . . Average Corruption . | . . . . . Corruption Purged . | . . . . . Corruption Blocked . | . . . . . Overload Shots . | . . . . . Overflow Damage 27 | . . 27 . . Projectiles 15 | . . 15 . . Explosions . | . . . . . Melee 12 | . . 12 . . Knockbacks 8 | . . 8 . . Impact . | . . . . . Kinetic 8 | . . 8 . . Secondary . | . . . . . Self-Inflicted Damage 23 | . . 23 . . Shots . | . . . . . Rammed 2 | . . 2 . . Targets Rammed 2 | . . 2 . . Kicked . | . . . . . Crushed . | . . . . . Highest Temperature 43 | . 43 28 . . Average Temperature 13 | . 14 12 . . Received Heat Transfer 153 | . 153 . . . Siege Activations . | . . . . . Robots Corrupted . | . . . . . Combat Hostiles . | . . . . . Parts Fried . | . . . . . Impact Corruptions 1 | . . 1 . . Robots Melted . | . . . . . Combat Hostiles . | . . . . . Parts Melted . | . . . . . Heat Transferred . | . . . . . Parts Sabotaged . | . . . . . Parts Stolen . | . . . . . Parts Stripped . | . . . . . Power Chain Reactions . | . . . . . Missiles Intercepted . | . . . . . Alert | -11 -10 -10 -10 -9 ------- Run | Scr Mat Min Exi Min Peak Influence 332 | 5 332 210 . 35 Initial 64 | . 3 64 . . Average 128 | 2 189 87 . 26 Maximum Alert Level 1 | . 1 1 . . Low Security (%) 78 | 100 57 94 . 100 Level 1 21 | . 42 5 . . Level 2 . | . . . . . Level 3 . | . . . . . Level 4 . | . . . . . Level 5 . | . . . . . High Security . | . . . . . Max Security . | . . . . . Squads Dispatched 2 | . 2 . . . Investigation 1 | . 1 . . . Extermination . | . . . . . Reinforcement 1 | . 1 . . . Assault . | . . . . . Garrison . | . . . . . Intercept . | . . . . . Searches Triggered . | . . . . . Construction Impeded . | . . . . . Haulers Reinforced . | . . . . . Active Scanning Responses . | . . . . . Cargo Convoy Interrupts . | . . . . . Stealth | -11 -10 -10 -10 -9 --------- Run | Scr Mat Min Exi Min Distress Signals 5 | . 5 . . . Communications Jammed . | . . . . . Distress Signals . | . . . . . Times Spotted 50 | . 28 12 . 10 Peak Tracking Total 10 | . 6 3 . 10 Tactical Retreats 3 | . 3 . . . Traps | -11 -10 -10 -10 -9 ------- Run | Scr Mat Min Exi Min Traps Triggered 1 | . 1 . . . Indirectly . | . . . . . Trap Hack Attempts . | . . . . . Triggered . | . . . . . Disarmed . | . . . . . Reprogrammed . | . . . . . Reused 2 | . . 2 . . Traps Extracted . | . . . . . Installed 2 | . . 2 . . Triggered 2 | . . 2 . . Most Traps Carried 3 | . . 3 1 1 Machines | -11 -10 -10 -10 -9 ---------- Run | Scr Mat Min Exi Min Machines Disabled 1 | . . 1 . . Max in Single Turn 1 | . . 1 . . Machines Sabotaged . | . . . . . Garrisons Compromised . | . . . . . Overloaded Fab Kills . | . . . . . Hacking | -11 -10 -10 -10 -9 --------- Run | Scr Mat Min Exi Min Machines Accessed 10 | . 5 1 4 . Terminals 6 | . 5 1 . . Fabricators . | . . . . . Repair Stations . | . . . . . Recycling Units . | . . . . . Scanalyzers . | . . . . . Garrison Access . | . . . . . Total Hacks 18 | . 13 1 4 . Successful 11 | . 6 1 4 . Failed 7 | . 7 . . . Catastrophic . | . . . . . Database Lockouts . | . . . . . Manual 10 | . 10 . . . Terminals 14 | . 13 1 . . Fabricators . | . . . . . Repair Stations . | . . . . . Recycling Units . | . . . . . Scanalyzers . | . . . . . Garrison Access . | . . . . . Terminal Hacks 7 | . 2 1 4 . Record 4 | . . . 4 . Robot Analysis 2 | . 2 . . . Zone Layout 1 | . . 1 . . Fabricator Hacks . | . . . . . Repair Station Hacks . | . . . . . Recycling Unit Hacks . | . . . . . Scanalyzer . | . . . . . Garrison Access Hacks . | . . . . . Unauthorized Hacks 4 | . 4 . . . Terminals 4 | . 4 . . . Botnet 4 | . 4 . . . Fabricators . | . . . . . Repair Stations . | . . . . . Recycling Units . | . . . . . Scanalyzers . | . . . . . Garrison Access . | . . . . . Data Cores Recovered . | . . . . . Used . | . . . . . Hacking Detections 6 | . 5 1 . . Full Trace Events 1 | . 1 . . . Feedback Events . | . . . . . Feedback Blocked . | . . . . . Robot Schematics Acquired . | . . . . . Robots Built . | . . . . . Authchips . | . . . . . Time . | . . . . . Total Robot Build Rating . | . . . . . Part Schematics Acquired . | . . . . . Parts Built . | . . . . . Authchips . | . . . . . Time . | . . . . . Total Part Build Rating . | . . . . . Parts Repaired . | . . . . . Time . | . . . . . Parts Recycled . | . . . . . Recycled Matter . | . . . . . Retrieved Matter . | . . . . . Retrieved Components . | . . . . . Parts Scanalyzed . | . . . . . Part Schematics Acquired . | . . . . . Parts Damaged . | . . . . . Bothacking | -11 -10 -10 -10 -9 ------------ Run | Scr Mat Min Exi Min Used RIF Installer . | . . . . . Robots Hacked . | . . . . . Non-combat . | . . . . . Combat . | . . . . . Robot Hacks Applied . | . . . . . Relay Couplers Released . | . . . . . Fabnet Peak Effective % . | . . . . . Robots Rewired . | . . . . . Allies Hacked . | . . . . . Hacks Repelled . | . . . . . Allies | -11 -10 -10 -10 -9 -------- Run | Scr Mat Min Exi Min Total Allies . | . . . . . Largest Group . | . . . . . Highest-Rated Group . | . . . . . Highest-Rated Ally . | . . . . . Total Orders . | . . . . . Ally Attacks . | . . . . . Total Damage . | . . . . . Kills . | . . . . . Allies Corrupted . | . . . . . Allies Melted . | . . . . . Intel | -11 -10 -10 -10 -9 ------- Run | Scr Mat Min Exi Min Robot Analysis Total 2 | . 2 . . . Derelict Logs Recovered 1 | . . 1 . . Drone Launches . | . . . . . Drone Recoveries . | . . . . . Exploration | -11 -10 -10 -10 -9 ------------- Run | Scr Mat Min Exi Min Turns Passed 3322 | 87 1181 1427 609 18 Spaces Moved 1836 | 44 623 713 447 9 Core 3 | 3 . . . . Treads 748 | 36 623 89 . . Legs 5 | 5 . . . . Wheels 1080 | . . 624 447 9 Hover . | . . . . . Flight . | . . . . . Fastest Speed 50 | 50 160 135 135 135 Average Speed 156 | 147 160 168 135 137 Slowest Speed 480 | 160 160 480 135 140 Overloaded Moves . | . . . . . Propulsion Burnouts . | . . . . . Robots Hopped . | . . . . . Cave-ins Triggered . | . . . . . Exploration Rate (%) 54 | 3 93 80 91 6 Regions Visited 4 Branch Regions 3 Pre-discovered Areas 1 | . . 1 . . Known Exits Taken . | . . . . . Unknown Exits Taken 4 | 1 1 1 1 . Scrap Searched 3 | . . 3 . . Spaces Dug . | . . . . . Terrain Destroyed . | . . . . . Melee . | . . . . . Projectile . | . . . . . AOE . | . . . . . Terrain Rammed . | . . . . . Walls Destroyed . | . . . . . Machines Disabled . | . . . . . Actions | -11 -10 -10 -10 -9 --------- Run | Scr Mat Min Exi Min Total 2088 | 57 725 841 453 12 Wait 50 | . 21 29 . . Move 1832 | 43 622 712 446 9 Hop . | . . . . . Pick Up 29 | . 10 16 3 . Fast Attach 18 | 9 3 6 . . Attach 2 | . . 1 . 1 Detach 2 | 2 . . . . Swap 10 | . 3 6 1 . Drop 20 | . 8 9 3 . Fire 121 | 3 58 58 . 2 Melee . | . . . . . Ram 2 | . . 2 . . Kick . | . . . . . Crush . | . . . . . Escape Stasis . | . . . . . Rewire . | . . . . . Trap 2 | . . 2 . . Miscellaneous . | . . . . . Route ------- -11/Scrapyard -10/Materials (discovered 4 exits: [*Mat x3] / *Min) -10/Mines (discovered 3 exits: [*Mat x2] / *Exi) -10/Exiles -9/Mines History --------- Turn | Location | Event 7 | -11/Scrapyard | Discovered new exit (range 16) 88 | -11/Scrapyard | Entered Materials 254 | -10/Materials | Discovered new exit (range 11) 317 | -10/Materials | Build established: Mutant 669 | -10/Materials | Discovered new exit (range 9) 865 | -10/Materials | Discovered new exit (range 13) 952 | -10/Materials | Discovered new exit (range 5) 1269 | -10/Materials | Entered Mines 1329 | -10/Mines | Found a hidden stash of uninstalled traps 1770 | -10/Mines | Core integrity fell below 50% 2018 | -10/Mines | Discovered new exit (range 10) 2066 | -10/Mines | Deemed a non-threat by the Exiles lab entrance 2067 | -10/Mines | Discovered new exit (range 5) 2138 | -10/Mines | Build established: Scavenger-Mutant 2221 | -10/Mines | Discovered new exit (range 5) 2498 | -10/Mines | Learned Materials stockpile data 2501 | -10/Mines | Learned location of Storage (-7) 2696 | -10/Mines | Entered Exiles 2696 | -10/Exiles | Found Exiles lab abandoned 3292 | -10/Exiles | Discovered new exit (range 10) 3305 | -10/Exiles | Entered Mines 3306 | -9/Mines | Assembled infested the area 3308 | -9/Mines | Core integrity fell below 20% 3311 | -9/Mines | Assisted by a Guerilla fighting off Assembled 3323 | -9/Mines | Destroyed by as-42640 with Assembled Rifle Last Messages --------------- coming. 03292_ EXIT=FOUND LOCATION=UNKNOWN GOAL=ESCAPE 03306_ ALERT: Infestation in the mines, dispatching Demolisher response squad. 03307_ S-10 Pest destroyed. 03309_ 5N-B4Q(h): "I'll hold them off! Go on ahead or try to find another way!" 03309_ HV Slug penetrates S-10 Pest. 03309_ S-10 Pest suffers critical hit (Destroy). 03309_ S-10 Pest destroyed. 03311_ A derelict emerges from the shadows: "You need to get out of here! I've been tracking a group of Assembled to figure out where they're coming from, and they're closing on this area, come on!" 03313_ Core Extractor disabled. 03314_ Com. Wheel destroyed. 03314_ as-92377 suffers critical hit (Destroy). 03318_ S-10 Pest destroyed. 03319_ 5N-B4Q(h) destroyed. Map ----- +----------------------------------------------------+ | ????????????????????????????????????????????? | | ????????????????????????????????????????????? | | ????????????????????????????????????????????? | | ????????????????????????????????????????????? | | ????????????????????????????????????????????? | | ????????????????????????????????????????????? | | ????????????????????????????????????????????? | | ????????????????????????????????????????????? | | ????????????????????????????????????????????? | | ????????????????????????????????????????????? | | ????????????????????????????????????????????? | | ????????????????????????????????????????????? | | ???????????? ???????????????????????????????? | | ?????????? ??????????????????????????????? | | ????????? ??????????????????????????????? | | ?????????? ?????????????????????????????? | | ??????????? ?????????????#???????????????? | | ???????????? ??????????? #???????????????? | | ????????????? "??????????? #???????????????? | | ?????????????? ?????????? #???????????????? | | ??????????????# ????????? #???????????????? | | ??????????????# ???????? #??#????????????? | | ???????????????# ????####% ##=###??????????? | | ????????????????# ???# %%%% #??????????? | | ????????????????# a####a =%** #??????????? | | ????????????????# a@ aa " " #??????????? | | ????????????????# !%= """ #??????????? | | ????????????????####### * """ #?????? | | ??????????????????????# #??????????? | | ??????????????????????############??????????? | | ????????????????????????????????????????????? | | ????????????????????????????????????????????? | | ????????????????????????????????????????????? | | | | | | | | | | | | | | | | | | | | | | | | | | | | | | | | | | | +----------------------------------------------------+ Best States ------------- Heat Dissipation 25 Energy Generation 10 Energy Capacity 250 Matter Stores 300 Matter Capacity 300 Sight Range 16 Terrain Scan Density 10 Evasion (%) 45 Recoil Reduction 2 Item Schematics ----------------- None Robot Schematics ------------------ None Fabricated ------------ Nothing Alien Tech Used ----------------- None Achievements -------------- None Challenges ------------ None Game ------ Seed BattleDefenseArmor Manual? 0 Play Time 00:12:57 Cumulative 284.5 hours Start 2022.05.26 @ 09:24:42 End 2022.05.26 @ 09:45:02 Sessions 3 Manual Loads 0 Difficulty Rogue Special Mode None Game No. 527 Rogue 372 Adventurer 148 Explorer 7 Win Type - Total 10 Types 8/0/1/1/0/0/0/0/0 Lore% 72 Gallery% 84 Achievement% 66 Wizard Run 0 Options --------- ASCII 0 Keyboard 0 Movement Numpad Keybinds 0 Fullscreen 1 Font 18/SmallcapsGlow Map View 76x50 Tactical HUD 1 Map Filters NONE Filters NONE Steam 1 RUN: 1e907673-a51d-4cec-b17b-4d7f207431c1